bitfinex-derivatives/quotes_BTCF0:USTF0_20241221
["timestamp","ask_amount","ask_price","bid_price","bid_amount"]
[1734788115051,0.001,96791.0,96778.0,0.3608]
[1734788115251,0.051676,96790.0,96789.0,0.001]
[1734788115449,0.051676,96790.0,96789.0,0.002]
[1734788115758,0.051676,96790.0,96789.0,0.003]
[1734788116253,0.052676,96790.0,96778.0,0.3608]
[1734788116453,0.001,96790.0,96783.0,0.051679]
[1734788116650,0.001,96790.0,96786.0,0.412478]
[1734788116951,0.001,96790.0,96786.0,0.3608]
[1734788117153,0.001,96790.0,96788.0,0.051677]
[1734788117457,0.12135592,96799.0,96798.0,0.051672]
[1734788117656,0.12135592,96799.0,96798.0,0.412472]
[1734788117953,0.15105947,96806.0,96805.0,0.051668]
[1734788118155,0.18127137,96814.0,96813.0,0.051664]
[1734788118461,0.051657,96826.0,96813.0,0.051664]
[1734788118462,0.12158366,96821.0,96813.0,0.3608]
[1734788118754,0.12158366,96821.0,96819.0,0.05166]
[1734788119263,0.12158366,96821.0,96814.0,0.051663]
[1734788119449,0.12158366,96821.0,96813.0,0.3608]
[1734788119654,0.12758366,96821.0,96813.0,0.3618]
[1734788119956,0.051663,96814.0,96813.0,0.3618]
[1734788120347,0.006,96821.0,96813.0,0.3618]
[1734788120544,0.05166,96820.0,96813.0,0.3618]
[1734788120855,0.006,96821.0,96815.0,0.3608]
[1734788121355,0.009,96821.0,96815.0,0.3608]
[1734788121544,0.009,96821.0,96819.0,0.05166]
[1734788121751,0.003,96821.0,96819.0,0.05166]
[1734788121944,0.007,96821.0,96819.0,0.05166]
[1734788122344,0.002,96821.0,96819.0,0.05166]
[1734788122758,0.051658,96823.0,96819.0,0.05166]
[1734788122961,0.051654,96831.0,96819.0,0.001]
[1734788123261,0.051654,96831.0,96823.0,0.412458]
[1734788123558,0.051654,96831.0,96824.0,0.051657]
[1734788124052,0.05165,96839.0,96825.0,0.3608]
[1734788124247,0.00155003,96846.0,96838.0,0.05165]
[1734788124546,0.00155003,96846.0,96836.0,0.3608]
[1734788124745,0.00155003,96846.0,96845.0,0.051646]
[1734788125362,0.00555003,96846.0,96845.0,0.051646]
[1734788125962,0.00555003,96846.0,96845.0,0.067166]
[1734788126155,0.051638,96862.0,96854.0,0.051641]
[1734788126357,0.002,96846.0,96845.0,0.067166]
[1734788126562,0.051635,96868.0,96858.0,0.051639]
[1734788126861,0.051635,96868.0,96861.0,0.3608]
[1734788127059,0.05163,96876.0,96861.0,0.3608]
[1734788127258,0.1436,96878.0,96861.0,0.3608]
[1734788127456,0.1436,96878.0,96873.0,0.051631]
[1734788127659,0.41302601,96883.0,96874.0,0.051631]
[1734788127858,0.051634,96868.0,96861.0,0.3608]
[1734788128059,0.001,96846.0,96845.0,0.37632]
[1734788128747,0.3608,96866.0,96845.0,0.37632]
[1734788128955,0.3608,96866.0,96861.0,0.001]
[1734788129158,0.009,96868.0,96861.0,0.001]
[1734788129362,0.008,96883.0,96867.0,0.3608]
[1734788130047,0.008,96883.0,96875.0,0.3608]
[1734788130253,0.008,96883.0,96880.0,0.051628]
[1734788130451,0.008,96883.0,96882.0,0.051627]
[1734788131465,0.05317023,96894.0,96882.0,0.051627]
[1734788131650,0.00154923,96894.0,96890.0,0.051622]
[1734788132053,0.00154923,96894.0,96892.0,0.051621]
[1734788132262,0.00154923,96894.0,96892.0,0.412421]
[1734788132556,0.00154923,96894.0,96892.0,0.3608]
[1734788132954,0.01054923,96894.0,96892.0,0.3608]
[1734788133353,0.00154923,96894.0,96892.0,0.3608]
[1734788133555,0.01054923,96894.0,96892.0,0.001]
[1734788134056,0.009,96894.0,96892.0,0.3618]
[1734788134262,0.009,96894.0,96893.0,0.051621]
[1734788134957,0.018,96894.0,96893.0,0.051621]
[1734788135557,0.009,96894.0,96893.0,0.051621]
[1734788135752,0.018,96894.0,96893.0,0.053621]
[1734788135951,0.018,96894.0,96893.0,0.327021]
[1734788136151,0.018,96894.0,96893.0,0.2754]
[1734788138256,0.1,96900.0,96899.0,0.051618]
[1734788138661,0.1474,96934.0,96894.0,0.3608]
[1734788138850,0.051607,96920.0,96907.0,0.3608]
[1734788139055,0.051607,96919.0,96907.0,0.412413]
[1734788139257,0.1474,96934.0,96907.0,0.412413]
[1734788139258,0.051608,96917.0,96907.0,0.412413]
[1734788139460,0.23795342,96930.0,96907.0,0.3608]
[1734788139664,0.051617,96900.0,96899.0,0.001]
[1734788140552,0.3608,96925.0,96899.0,0.001]
[1734788140957,0.051614,96906.0,96899.0,0.001]
[1734788141170,0.051614,96906.0,96897.0,0.051619]
[1734788141664,0.051619,96897.0,96895.0,0.3608]
[1734788141964,0.1426,96905.0,96895.0,0.3608]
[1734788142362,0.194215,96905.0,96897.0,0.001]
[1734788142570,0.1426,96905.0,96897.0,0.001]
[1734788142761,0.051617,96901.0,96897.0,0.001]
[1734788142959,0.051617,96901.0,96895.0,0.001]
[1734788143356,0.1426,96905.0,96895.0,0.001]
[1734788143357,0.3608,96896.0,96895.0,0.001]
[1734788143564,0.3608,96896.0,96892.0,1e-08]
[1734788143565,0.051621,96893.0,96892.0,1e-08]
[1734788144262,0.00060001,96896.0,96895.0,0.05162]
[1734788144566,0.00842702,96906.0,96897.0,0.051619]
[1734788144764,0.051618,96898.0,96897.0,0.001]
[1734788144970,0.00411941,96905.0,96897.0,0.001]
[1734788145267,0.00411941,96905.0,96895.0,0.001]
[1734788145268,0.051616,96903.0,96895.0,0.001]
[1734788145458,0.051616,96903.0,96893.0,0.051621]
[1734788145968,0.004,96898.0,96897.0,0.001]
[1734788146159,0.004,96898.0,96897.0,0.413419]
[1734788146354,0.00011941,96905.0,96904.0,0.051615]
[1734788148264,0.00011941,96905.0,96904.0,0.412415]
[1734788148466,0.00011941,96905.0,96904.0,0.413415]
[1734788148668,0.00511941,96905.0,96904.0,0.414415]
[1734788150069,0.00511941,96905.0,96904.0,0.429895]
[1734788152972,0.00843688,96941.0,96918.0,0.051607]
[1734788153169,0.00843688,96944.0,96939.0,0.051596]
[1734788153365,0.30431089,96945.0,96939.0,0.051596]
[1734788153568,0.31274777,96945.0,96940.0,0.051596]
[1734788153770,0.30431089,96945.0,96940.0,0.051596]
[1734788153966,0.051594,96944.0,96940.0,0.051596]
[1734788154365,0.30431089,96945.0,96940.0,0.051596]
[1734788154561,0.00843688,96944.0,96933.0,0.3608]
[1734788154776,0.30431089,96945.0,96933.0,0.3608]
[1734788154777,0.00843688,96943.0,96933.0,0.3608]
[1734788155071,0.00847803,96942.0,96933.0,0.3608]
[1734788155264,0.00847803,96941.0,96935.0,0.051598]
[1734788155465,0.00847803,96940.0,96937.0,0.051597]
[1734788155663,0.051594,96943.0,96937.0,0.051597]
[1734788155664,0.00847803,96939.0,96937.0,0.051597]
[1734788155868,0.00847803,96938.0,96937.0,0.051597]
[1734788156068,0.00847803,96942.0,96933.0,0.3608]
[1734788156262,0.00847803,96941.0,96933.0,0.3608]
[1734788156462,0.051598,96937.0,96934.0,0.051599]
[1734788156663,0.051599,96935.0,96933.0,0.3608]
[1734788156864,0.051599,96935.0,96928.0,0.051602]
[1734788157065,0.00847627,96943.0,96929.0,0.3608]
[1734788157261,0.003,96944.0,96921.0,0.3608]
[1734788157262,0.051601,96931.0,96921.0,0.3608]
[1734788157469,0.051602,96930.0,96924.0,0.051604]
[1734788157677,0.00847627,96940.0,96924.0,0.051604]
[1734788157862,0.0516,96933.0,96924.0,0.051604]
[1734788158068,0.00847627,96938.0,96924.0,0.051604]
[1734788158269,0.00847627,96937.0,96924.0,0.051604]
[1734788158471,0.0516,96932.0,96927.0,0.051603]
[1734788158771,0.00847627,96931.0,96921.0,0.3608]
[1734788158970,0.051605,96924.0,96921.0,0.3608]
[1734788159172,0.00847627,96929.0,96921.0,0.3608]
[1734788159472,0.00847627,96928.0,96923.0,0.051605]
[1734788159770,0.00847627,96927.0,96925.0,0.051604]
[1734788159977,0.3608,96942.0,96925.0,0.051604]
[1734788159978,0.00847627,96926.0,96925.0,0.051604]
[1734788160178,0.051597,96938.0,96921.0,0.3608]
[1734788160379,0.001,96932.0,96930.0,0.3608]
[1734788160566,0.001,96932.0,96931.0,0.051601]
[1734788160979,0.00847627,96940.0,96936.0,0.051598]
[1734788161282,0.3608,96942.0,96937.0,0.051597]
[1734788161671,0.16038716,96944.0,96938.0,0.051597]
[1734788161870,0.15191089,96944.0,96938.0,0.051597]
[1734788162165,0.15191089,96944.0,96930.0,0.3608]
[1734788162166,0.051596,96939.0,96933.0,0.051599]
[1734788162365,0.051601,96931.0,96930.0,0.3608]
[1734788163279,0.3608,96941.0,96921.0,0.3608]
[1734788163474,0.051597,96939.0,96921.0,0.3608]
[1734788163785,0.051605,96922.0,96921.0,0.3608]
[1734788163976,0.051615,96905.0,96904.0,0.0006]
[1734788164275,0.051614,96906.0,96895.0,0.00052]
[1734788164473,0.051614,96906.0,96901.0,0.051616]
[1734788164672,0.051611,96913.0,96897.0,0.3608]
[1734788164875,0.00822082,96912.0,96906.0,0.051614]
[1734788165064,0.00822082,96911.0,96904.0,0.004]
[1734788165266,0.051615,96905.0,96904.0,0.004]
[1734788166177,0.00822082,96911.0,96904.0,0.004]
[1734788166375,0.00822082,96910.0,96905.0,0.3608]
[1734788166579,0.051613,96908.0,96905.0,0.3608]
[1734788166778,0.05983482,96907.0,96905.0,0.3608]
[1734788166973,0.051614,96907.0,96905.0,0.3608]
[1734788168171,0.051618,96899.0,96892.0,1e-08]
[1734788168367,0.051619,96898.0,96892.0,1e-08]
[1734788168571,0.00822082,96904.0,96892.0,1e-08]
[1734788168768,0.051621,96894.0,96892.0,1e-08]
[1734788168975,0.00822082,96905.0,96892.0,1e-08]
[1734788169173,0.051616,96902.0,96895.0,0.3608]
[1734788169370,0.051619,96896.0,96895.0,0.3608]
[1734788169571,0.3608,96899.0,96892.0,1e-08]
[1734788169785,0.051621,96893.0,96892.0,1e-08]
[1734788170469,0.051621,96893.0,96892.0,0.00100001]
[1734788170895,0.0659696,96893.0,96892.0,1e-08]
[1734788171078,0.0679696,96893.0,96892.0,1e-08]
[1734788171583,0.0689696,96893.0,96892.0,1e-08]
[1734788175187,0.003,96893.0,96892.0,1e-08]
[1734788177388,0.002,96893.0,96892.0,1e-08]
[1734788177589,0.003,96893.0,96892.0,1e-08]
[1734788177899,0.001,96893.0,96892.0,1e-08]
[1734788178090,0.003,96893.0,96892.0,1e-08]
[1734788178593,0.054621,96893.0,96892.0,1e-08]
[1734788179095,0.003,96893.0,96892.0,0.36080001]
[1734788179393,0.003,96893.0,96892.0,0.41242101]
[1734788179692,0.003,96893.0,96892.0,0.36080001]
[1734788179890,0.054621,96893.0,96892.0,0.36080001]
[1734788180078,0.051621,96893.0,96892.0,0.36080001]
[1734788180283,0.053621,96893.0,96892.0,1e-08]
[1734788180790,0.051621,96893.0,96892.0,1e-08]
[1734788181186,0.12148722,96906.0,96892.0,1e-08]
[1734788181187,0.12148722,96903.0,96892.0,1e-08]
[1734788181492,0.002,96893.0,96892.0,1e-08]
[1734788182591,0.002,96893.0,96892.0,0.36080001]
[1734788182890,0.12148722,96908.0,96892.0,0.66080001]
[1734788183094,0.15191089,96915.0,96907.0,0.3608]
[1734788183393,0.18127137,96922.0,96921.0,0.051606]
[1734788183594,0.21148327,96939.0,96921.0,0.3608]
[1734788183892,0.051598,96937.0,96935.0,0.3608]
[1734788185184,0.008,96939.0,96935.0,0.412398]
[1734788186390,0.056598,96937.0,96935.0,0.3618]
[1734788186793,0.051598,96937.0,96935.0,0.3608]
[1734788187093,0.051598,96937.0,96935.0,0.001]
[1734788187506,0.005,96937.0,96925.0,0.051603]
[1734788188287,0.005,96937.0,96932.0,0.0516]
[1734788188793,0.005,96937.0,96934.0,0.051599]
[1734788189894,0.057598,96937.0,96933.0,0.3608]
[1734788190194,0.006,96937.0,96933.0,0.3608]
[1734788190392,0.051594,96944.0,96933.0,0.3608]
[1734788190583,0.006,96937.0,96934.0,0.001]
[1734788190789,0.006,96937.0,96934.0,0.052599]
[1734788190991,0.006,96937.0,96934.0,0.001]
[1734788191191,0.001,96937.0,96936.0,0.051598]
[1734788191399,0.007,96937.0,96936.0,0.051598]
[1734788193290,0.006,96937.0,96936.0,0.001]
[1734788193489,0.00154798,96979.0,96936.0,0.5744]
[1734788193694,0.00154798,96979.0,96978.0,0.412376]
[1734788194706,0.00254798,96979.0,96978.0,0.412376]
[1734788194895,0.00854798,96979.0,96978.0,0.413376]
[1734788195605,0.00754798,96979.0,96978.0,0.413376]
[1734788196297,0.00154798,96979.0,96978.0,0.412376]
[1734788196505,0.3608,97055.0,96998.0,0.3608]
[1734788196704,0.01079431,97048.0,97032.0,0.3608]
[1734788197005,0.21148327,97042.0,97032.0,0.3608]
[1734788197303,0.21148327,97042.0,97027.0,0.3608]
[1734788197512,0.21148327,97042.0,97035.0,0.3608]
[1734788197898,0.3608,97038.0,97016.0,0.3608]
[1734788198091,0.3608,97038.0,97028.0,0.051549]
[1734788198493,0.21148327,97042.0,97026.0,0.3608]
[1734788198702,0.21148327,97042.0,97041.0,0.051542]
[1734788198899,0.3608,97059.0,97034.0,0.3608]
[1734788199107,0.3608,97059.0,97044.0,0.05154]
[1734788199301,0.3608,97059.0,97045.0,0.05154]
[1734788199503,0.3608,97059.0,97035.0,0.001]
[1734788199802,0.3608,97059.0,97049.0,0.051538]
[1734788201005,0.3608,97059.0,97049.0,0.052538]
[1734788201402,0.3608,97059.0,97049.0,0.002]
[1734788201600,0.3608,97059.0,97050.0,0.051537]
[1734788202307,0.3608,97059.0,97058.0,0.051533]
[1734788202605,0.1529,97064.0,97063.0,0.05153]
[1734788203708,0.1529,97064.0,97063.0,0.05253]
[1734788204301,0.3608,97068.0,97063.0,0.001]
[1734788204611,0.412315,97092.0,97080.0,0.051521]
[1734788205108,0.01072199,97088.0,97080.0,0.051521]
[1734788205612,0.41232,97083.0,97070.0,0.051526]
[1734788205810,0.41292001,97083.0,97070.0,0.051526]
[1734788206112,0.051521,97082.0,97080.0,0.001]
[1734788206310,0.421521,97082.0,97080.0,0.001]
[1734788206614,0.00064,97082.0,97063.0,0.001]
[1734788206807,0.05153,97065.0,97063.0,0.001]
[1734788207004,0.5176,97064.0,97063.0,0.001]
[1734788207610,0.5176,97064.0,97057.0,0.051533]
[1734788207912,0.3608,97061.0,97048.0,0.051538]
[1734788208209,0.3608,97061.0,97047.0,0.01548]
[1734788208424,0.3608,97061.0,97055.0,0.051535]
[1734788208814,0.3608,97061.0,97048.0,0.051538]
[1734788209004,0.3608,97061.0,97057.0,0.051533]
[1734788209811,0.3608,97061.0,97045.0,0.3608]
[1734788209812,0.3608,97061.0,97058.0,0.051533]
[1734788209999,0.3608,97061.0,97047.0,0.01548]
[1734788210205,0.3608,97061.0,97060.0,0.051532]
[1734788211007,0.3608,97061.0,97047.0,0.01548]
[1734788211008,0.051533,97058.0,97055.0,0.051534]
[1734788211205,0.3608,97061.0,97047.0,0.01548]
[1734788211401,0.3608,97061.0,97059.0,0.051532]
[1734788212203,0.051532,97060.0,97055.0,0.051535]
[1734788212499,0.051532,97060.0,97046.0,0.01548]
[1734788212500,0.3608,97061.0,97034.0,0.3608]
[1734788212705,0.149,97059.0,97038.0,0.01561055]
[1734788212905,0.05154,97046.0,97038.0,0.00013055]
[1734788213204,0.1579,97058.0,97038.0,0.00013055]
[1734788213406,0.1579,97058.0,97049.0,0.051538]
[1734788213607,0.051535,97055.0,97049.0,0.051538]
[1734788213808,0.051535,97055.0,97038.0,0.00013055]
[1734788214009,0.051535,97055.0,97051.0,0.051536]
[1734788214318,0.051537,97052.0,97045.0,0.3618]
[1734788214809,0.051539,97047.0,97045.0,0.3618]
[1734788215810,0.051539,97047.0,97045.0,0.3608]
[1734788216317,0.001,97055.0,97053.0,0.051535]
[1734788216517,0.001,97055.0,97053.0,0.412335]
[1734788216911,0.3608,97061.0,97060.0,0.051532]
[1734788218107,0.3608,97061.0,97053.0,0.3608]
[1734788218314,0.051533,97059.0,97053.0,0.3608]
[1734788218513,0.3618,97061.0,97060.0,0.051532]
[1734788218712,0.001,97061.0,97060.0,0.051532]
[1734788220138,0.051532,97060.0,97056.0,0.051534]
[1734788220308,0.051543,97040.0,97034.0,0.051545]
[1734788220511,0.051539,97047.0,97030.0,0.15334423]
[1734788220717,0.001,97061.0,97046.0,0.3608]
[1734788220922,0.001,97061.0,97055.0,0.3608]
[1734788221112,0.001,97061.0,97060.0,0.051532]
[1734788221721,0.1534,97080.0,97065.0,0.051529]
[1734788221924,0.412325,97074.0,97069.0,0.051527]
[1734788222118,0.412325,97074.0,97070.0,0.051526]
[1734788222309,0.412325,97074.0,97071.0,0.051526]
[1734788222811,0.3608,97074.0,97051.0,0.051537]
[1734788223017,0.3608,97074.0,97073.0,0.051525]
[1734788224316,0.3608,97074.0,97051.0,0.051537]
[1734788224317,0.3608,97074.0,97059.0,0.01061138]
[1734788224514,0.3608,97074.0,97051.0,0.051537]
[1734788224515,0.3618,97074.0,97051.0,0.051537]
[1734788224813,0.3618,97074.0,97048.0,0.34624]
[1734788225010,0.3608,97062.0,97048.0,0.34624]
[1734788225210,0.051526,97072.0,97050.0,0.15334423]
[1734788225415,0.3608,97058.0,97057.0,0.051534]
[1734788225819,0.36140001,97066.0,97065.0,0.051529]
[1734788226121,0.3608,97066.0,97065.0,0.051529]
[1734788227426,0.3618,97066.0,97065.0,0.051529]
[1734788229220,0.36998299,97066.0,97065.0,0.051529]
[1734788229616,0.00060001,97080.0,97065.0,0.351529]
[1734788229813,0.3608,97106.0,97078.0,0.3608]
[1734788230123,0.3608,97106.0,97088.0,0.412317]
[1734788231028,0.51135105,97106.0,97099.0,0.051511]
[1734788231341,0.15055105,97106.0,97099.0,0.051511]
[1734788232118,0.15055105,97106.0,97092.0,0.051515]
[1734788232325,0.051512,97099.0,97092.0,0.051515]
[1734788232522,0.051516,97091.0,97088.0,0.3618]
[1734788232830,0.201512,97099.0,97097.0,0.051512]
[1734788233023,0.3608,97102.0,97099.0,0.054511]
[1734788233228,0.3608,97112.0,97099.0,0.054511]
[1734788233618,0.051504,97114.0,97099.0,0.052511]
[1734788233824,0.3608,97108.0,97099.0,0.052511]
[1734788234224,0.051508,97106.0,97099.0,0.052511]
[1734788234721,0.051504,97113.0,97099.0,0.052511]
[1734788234914,0.15,97119.0,97099.0,0.052511]
[1734788235118,0.201501,97119.0,97099.0,0.052511]
[1734788235428,0.051501,97118.0,97099.0,0.052511]
[1734788235924,0.15,97119.0,97099.0,0.052511]
[1734788235925,0.051505,97112.0,97099.0,0.052511]
[1734788236126,0.3608,97114.0,97099.0,0.052511]
[1734788236327,0.3608,97114.0,97099.0,0.054511]
[1734788237223,0.051493,97134.0,97113.0,0.051504]
[1734788237420,0.051493,97134.0,97116.0,0.3608]
[1734788237625,0.051493,97134.0,97117.0,0.051501]
[1734788237826,0.051493,97134.0,97116.0,0.3608]
[1734788238226,0.09139806,97136.0,97133.0,0.051493]
[1734788238423,0.09139806,97136.0,97116.0,0.3608]
[1734788238625,0.09139806,97136.0,97134.0,0.051493]
[1734788239023,0.09139806,97136.0,97135.0,0.3608]
[1734788240026,0.15055105,97146.0,97135.0,0.3608]
[1734788240229,0.09129911,97160.0,97159.0,0.05148]
[1734788240637,0.09129911,97160.0,97159.0,0.41228]
[1734788241547,0.09129911,97160.0,97159.0,0.05148]
[1734788241838,0.3608,97177.0,97145.0,0.3608]
[1734788242136,0.051478,97163.0,97153.0,0.051482]
[1734788242338,0.3608,97154.0,97153.0,0.051482]
[1734788242835,0.051484,97152.0,97145.0,0.051487]
[1734788243031,0.3608,97154.0,97145.0,0.001]
[1734788243228,0.1503,97151.0,97145.0,0.001]
[1734788243640,0.3608,97154.0,97153.0,0.051483]
[1734788244538,0.3608,97154.0,97153.0,0.052483]
[1734788244839,0.3608,97154.0,97153.0,0.001]
[1734788245543,0.3608,97154.0,97152.0,0.051483]
[1734788246043,0.3608,97154.0,97145.0,0.001]
[1734788246044,0.3608,97164.0,97163.0,0.051477]
[1734788246538,0.3608,97183.0,97173.0,0.051472]
[1734788246721,0.3608,97183.0,97156.0,0.6608]
[1734788246927,0.3608,97183.0,97181.0,0.051468]
[1734788247736,0.051471,97176.0,97157.0,0.34592]
[1734788247930,0.3608,97175.0,97157.0,0.34592]
[1734788248629,0.3608,97175.0,97170.0,0.051474]
[1734788249137,0.3608,97175.0,97152.0,0.0083713]
[1734788249431,0.3608,97159.0,97152.0,0.051483]
[1734788249733,0.3608,97159.0,97135.0,0.3608]
[1734788249734,0.3608,97159.0,97144.0,0.00848705]
[1734788249933,0.3608,97171.0,97158.0,0.05148]
[1734788250141,0.3608,97171.0,97145.0,0.3608]
[1734788250336,0.3608,97171.0,97163.0,0.051477]
[1734788250831,0.3608,97171.0,97169.0,0.051474]
[1734788251232,0.051466,97185.0,97169.0,0.051474]
[1734788251436,0.3608,97179.0,97177.0,0.05147]
[1734788252138,0.3608,97186.0,97177.0,0.05147]
[1734788252337,0.3608,97186.0,97169.0,0.001]
[1734788252536,0.3608,97174.0,97169.0,0.001]
[1734788253039,0.051474,97171.0,97169.0,0.001]
[1734788253839,0.00052001,97174.0,97169.0,0.001]
[1734788254138,0.3608,97195.0,97183.0,0.051467]
[1734788254336,0.3608,97195.0,97177.0,0.003]
[1734788254537,0.3608,97195.0,97186.0,0.051465]
[1734788254841,0.3608,97195.0,97173.0,0.3608]
[1734788255040,0.3608,97195.0,97173.0,0.36909302]
[1734788255340,0.051465,97187.0,97182.0,0.051467]
[1734788255545,0.412261,97195.0,97184.0,0.051466]
[1734788255734,0.3608,97195.0,97186.0,0.051465]
[1734788256034,0.3608,97195.0,97173.0,0.3608]
[1734788256238,0.051463,97191.0,97184.0,0.051466]
[1734788256442,0.3608,97195.0,97186.0,0.051465]
[1734788256737,0.3608,97195.0,97193.0,0.051461]
[1734788258333,0.1,97200.0,97199.0,0.051458]
[1734788258535,0.10141149,97200.0,97199.0,0.051458]
[1734788259136,0.10141149,97200.0,97188.0,0.00900519]
[1734788259444,0.10141149,97200.0,97181.0,0.3608]
[1734788259644,0.00141149,97191.0,97181.0,0.3608]
[1734788259948,0.00141149,97191.0,97190.0,0.051463]
[1734788261336,0.00141149,97191.0,97181.0,0.00867576]
[1734788261533,0.4608,97200.0,97179.0,0.3608]
[1734788261736,0.00141149,97186.0,97184.0,0.051466]
[1734788262636,0.00141149,97185.0,97184.0,0.051466]
[1734788264243,0.002331,97185.0,97179.0,0.3608]
[1734788265140,0.002331,97185.0,97184.0,0.051466]
[1734788265647,0.00282298,97185.0,97184.0,0.051466]
[1734788269842,0.00282298,97185.0,97184.0,0.18269943]
[1734788270045,0.05428898,97185.0,97180.0,0.24542181]
[1734788270254,0.1548,97184.0,97180.0,0.24542181]
[1734788270548,0.051468,97181.0,97174.0,0.30701869]
[1734788270946,0.051469,97179.0,97174.0,0.30701869]
[1734788271251,0.051469,97179.0,97172.0,0.051473]
[1734788271641,0.3608,97173.0,97172.0,0.051473]
[1734788272044,0.36420081,97173.0,97165.0,0.00876979]
[1734788272244,0.41567281,97173.0,97163.0,0.051477]
[1734788272954,0.36420081,97173.0,97163.0,0.051477]
[1734788273255,0.36420081,97173.0,97164.0,0.051476]
[1734788273256,0.00340081,97168.0,97164.0,0.051476]
[1734788273550,0.00340081,97168.0,97158.0,0.36946558]
[1734788273747,0.00340081,97168.0,97166.0,0.051475]
[1734788274048,0.00340081,97167.0,97158.0,0.36946558]
[1734788274250,0.00340081,97167.0,97166.0,0.412276]
[1734788275052,0.00340081,97167.0,97166.0,0.416276]
[1734788275549,0.12136987,97176.0,97175.0,0.051471]
[1734788275750,0.3608,97188.0,97175.0,0.3608]
[1734788275960,0.3608,97188.0,97187.0,0.051465]
[1734788277064,0.3608,97188.0,97184.0,0.051466]
[1734788277553,0.3608,97188.0,97166.0,0.3638]
[1734788277754,0.3608,97188.0,97168.0,0.051475]
[1734788277952,0.3608,97188.0,97166.0,0.36966516]
[1734788278552,0.3608,97188.0,97186.0,0.051465]
[1734788280353,0.3608,97188.0,97177.0,0.00892521]
[1734788280354,0.1535,97195.0,97194.0,0.051461]
[1734788282158,0.12136987,97196.0,97194.0,0.051461]
[1734788283158,0.1462,97214.0,97199.0,0.051458]
[1734788283159,0.12136987,97201.0,97199.0,0.051458]
[1734788284759,0.12136987,97212.0,97199.0,0.051458]
[1734788287158,0.3608,97207.0,97199.0,0.051458]
[1734788287852,0.3608,97207.0,97192.0,0.00894817]
[1734788288053,0.3608,97199.0,97185.0,0.3608]
[1734788288255,0.051463,97191.0,97185.0,0.3608]
[1734788289049,0.412263,97190.0,97185.0,0.051466]
[1734788289248,0.1536,97189.0,97177.0,0.05147]
[1734788289552,0.1536,97189.0,97170.0,0.00154343]
[1734788289553,0.3608,97179.0,97170.0,0.00154343]
[1734788289752,0.051473,97171.0,97170.0,0.00154343]
[1734788289965,0.412273,97171.0,97170.0,0.00154343]
[1734788290150,0.051479,97161.0,97160.0,0.30701869]
[1734788290458,0.412279,97161.0,97160.0,0.30701869]
[1734788290650,0.3608,97169.0,97160.0,0.30701869]
[1734788290850,0.4214644,97180.0,97168.0,0.051474]
[1734788291165,0.3608,97180.0,97170.0,0.006]
[1734788291348,0.051472,97173.0,97170.0,0.006]
[1734788291860,0.3608,97180.0,97170.0,0.006]
[1734788291861,0.051473,97171.0,97170.0,0.006]
[1734788292954,0.051473,97171.0,97156.0,0.051481]
[1734788292955,0.3608,97172.0,97160.0,0.008]
[1734788293153,0.051478,97163.0,97160.0,0.008]
[1734788293352,0.1611,97162.0,97156.0,0.051481]
[1734788293656,0.05148,97158.0,97149.0,0.051485]
[1734788293850,0.1611,97162.0,97158.0,0.05148]
[1734788294558,0.1611,97162.0,97160.0,0.007]
[1734788294949,0.212578,97162.0,97160.0,0.007]
[1734788295155,0.1587,97161.0,97160.0,0.007]
[1734788295754,0.1587,97161.0,97160.0,0.011]
[1734788296156,0.1587,97161.0,97160.0,0.004]
[1734788296563,0.4587,97161.0,97122.0,0.3608]
[1734788296772,0.3608,97144.0,97122.0,0.3608]
[1734788296955,0.4587,97161.0,97122.0,0.3608]
[1734788296956,0.3608,97135.0,97123.0,0.35851769]
[1734788297265,0.3608,97126.0,97123.0,0.30701869]
[1734788297455,0.051498,97125.0,97123.0,0.30701869]
[1734788298061,0.051498,97125.0,97111.0,0.35852369]
[1734788298266,0.1584,97133.0,97124.0,0.05159412]
[1734788298267,0.3608,97130.0,97124.0,0.05159412]
[1734788298475,0.3608,97130.0,97112.0,0.3608]
[1734788298658,0.051503,97115.0,97111.0,0.30701869]
[1734788299469,0.00010465,97114.0,97111.0,0.30701869]
[1734788299761,0.00010465,97114.0,97113.0,0.3608]
[1734788300670,0.00310465,97114.0,97113.0,0.3608]
[1734788300861,0.00310465,97114.0,97112.0,0.051504]
[1734788301364,0.00310465,97114.0,97113.0,0.001]
[1734788301870,0.36390465,97114.0,97113.0,0.001]
[1734788302066,0.36190465,97114.0,97113.0,0.051504]
[1734788302364,0.36190465,97114.0,97113.0,0.054504]
[1734788302559,0.36190465,97114.0,97113.0,0.003]
[1734788302756,0.36390465,97114.0,97105.0,0.051508]
[1734788302961,0.00310465,97114.0,97100.0,0.3608]
[1734788303261,0.051504,97113.0,97100.0,0.3608]
[1734788303761,0.36242466,97114.0,97108.0,0.051506]
[1734788303971,0.36190465,97114.0,97108.0,0.051506]
[1734788304468,0.051508,97107.0,97100.0,0.412311]
[1734788304663,0.001,97113.0,97100.0,0.3608]
[1734788304859,0.001,97113.0,97111.0,0.051505]
[1734788305059,0.051505,97111.0,97103.0,0.051509]
[1734788305261,0.36190465,97114.0,97100.0,0.3608]
[1734788305661,0.05151,97101.0,97100.0,0.3608]
[1734788307356,0.3608,97101.0,97091.0,0.051515]
[1734788307562,0.051513,97097.0,97091.0,0.051515]
[1734788307774,0.051514,97095.0,97091.0,0.051515]
[1734788307964,0.051514,97095.0,97074.0,0.3608]
[1734788307965,0.1604,97100.0,97083.0,0.05152]